[Event "IMSA Blitz Men 2019"]
[Site "Hengshui"]
[Date "2019.05.17"]
[Round "5.2"]
[White "Korobov, Anton"]
[Black "Bu, Xiangzhi"]
[Result "0-1"]
[ECO "D45"]
[WhiteElo "2687"]
[BlackElo "2729"]
[Annotator "ChessBase"]
[PlyCount "58"]
[EventDate "2019.05.17"]
[EventType "blitz"]
[EventCountry "CHN"]
[SourceTitle "playchess.com"]
[Source "ChessBase"]
[SourceQuality "1"]
[TimeControl "180+2"]

1. d4 {[%emt 0:00:00]} d5 {[%emt 0:00:00]} 2. c4 {[%emt 0:00:00]} c6 {[%emt 0:00:00]} 3. Nc3 {[%emt 0:00:01]} Nf6 {[%emt 0:00:00]} 4. e3 {[%emt 0:00:01]} e6 {[%emt 0:00:01]} 5. Nf3 {[%emt 0:00:02]} a6 {[%emt 0:00:00]} 6. Qc2 {[%emt 0:00:12]} c5 {[%emt 0:00:02]} 7. a3 {[%emt 0:00:21]} dxc4 {[%emt 0:00:10]} 8. Bxc4 {[%emt 0:00:05]} b5 {[%emt 0:00:05]} 9. Ba2 {[%emt 0:00:05]} Bb7 {[%emt 0:00:01]} 10. dxc5 {[%emt 0:00:07]} Bxc5 {[%emt 0:00:08]} 11. Nxb5 {[%emt 0:00:15]} Nbd7 {[%emt 0:00:01]} 12. Nc3 {[%emt 0:00:06]} O-O {[%emt 0:00:13]} 13. Bd2 {[%emt 0:00:22]} Rc8 {[%emt 0:00:05]} 14. O-O-O {[%emt 0:00:09]} Qe7 {[%emt 0:00:15]} 15. Kb1 {[%emt 0:00:07]} Bxa3 {[%emt 0:00:12]} 16. Ka1 {[%emt 0:00:48]} Bb4 {[%emt 0:00:06]} 17. Nd4 {[%emt 0:00:01]} a5 {[%emt 0:00:14]} 18. f3 {[%emt 0:00:04]} Nb6 {[%emt 0:00:02]} 19. e4 {[%emt 0:00:02]} Nc4 {[%emt 0:00:04]} 20. Bc1 {[%emt 0:00:08]} Rfd8 {[%emt 0:00:03]} 21. Ndb5 {[%emt 0:00:04]} Ba6 {[%emt 0:00:02]} 22. Rxd8+ {[%emt 0:00:03]} Qxd8 {[%emt 0:00:01]} 23. Rd1 {[%emt 0:00:03]} Qb6 {[%emt 0:00:05]} 24. Qa4 {[%emt 0:00:06]} Ne3 {[%emt 0:00:07]} 25. Rd3 {[%emt 0:00:12]} Nxg2 {[%emt 0:00:20]} 26. Bg5 {[%emt 0:00:01]} Ne1 {[%emt 0:00:19]} 27. Be3 {[%emt 0:00:03]} Qc6 {[%emt 0:00:12]} 28. Rd1 {[%emt 0:00:05]} Bxb5 {[%emt 0:00:01]} 29. Nxb5 {[%emt 0:00:04]} Nc2+ {[%emt 0:00:01]} 0-1

[Event "IMSA Blitz Men 2019"]
[Site "Hengshui"]
[Date "2019.05.17"]
[Round "5.2"]
[White "Cheparinov, Ivan"]
[Black "Gelfand, Boris"]
[Result "1/2-1/2"]
[ECO "E10"]
[WhiteElo "2667"]
[BlackElo "2676"]
[Annotator "RC"]
[PlyCount "137"]
[EventDate "2019.05.17"]
[EventType "blitz"]
[EventCountry "CHN"]
[SourceTitle "playchess.com"]
[Source "ChessBase"]
[SourceQuality "1"]
[TimeControl "180+2"]

1. d4 {[%emt 0:00:00]} Nf6 {[%emt 0:00:00]} 2. c4 {[%emt 0:00:00]} e6 {[%emt 0:00:00]} 3. Nf3 {[%emt 0:00:00]} d5 {[%emt 0:00:00]} 4. g3 {[%emt 0:00:02]} Bb4+ {[%emt 0:00:01]} 5. Bd2 {[%emt 0:00:01]} Be7 {[%emt 0:00:01]} 6. Bg2 {[%emt 0:00:01]} O-O {[%emt 0:00:01]} 7. O-O {[%emt 0:00:01]} c6 {[%emt 0:00:01]} 8. Qc2 {[%emt 0:00:03]} Nbd7 {[%emt 0:00:02]} 9. Rd1 {[%emt 0:00:05]} b6 {[%emt 0:00:02]} 10. b3 {[%emt 0:00:02]} Bb7 {[%emt 0:00:01]} 11. Nc3 {[%emt 0:00:03]} Ba6 {[%emt 0:00:01]} 12. e4 {[%emt 0:00:37]} dxc4 {[%emt 0:00:02]} 13. Bf4 {[%emt 0:00:03]} b5 {[%emt 0:00:12]} 14. bxc4 {[%emt 0:00:04]} bxc4 {[%emt 0:00:01]} 15. h3 {[%emt 0:00:19]} Qa5 {[%emt 0:00:12]} 16. Bd2 {[%emt 0:00:04]} Qc7 {[%emt 0:00:08]} 17. Re1 {[%emt 0:00:09]} Rfe8 {[%emt 0:00:08]} 18. Rac1 {[%emt 0:00:10]} e5 {[%emt 0:00:36]} 19. dxe5 {[%emt 0:00:09]} Nxe5 {[%emt 0:00:01]} 20. Nxe5 {[%emt 0:00:02]} Qxe5 {[%emt 0:00:00]} 21. Bf4 {[%emt 0:00:01]} Qa5 {[%emt 0:00:03]} 22. e5 {[%emt 0:00:32]} Nd5 {[%emt 0:00:02]} 23. Nxd5 {[%emt 0:00:06]} cxd5 {[%emt 0:00:01]} 24. e6 {[%emt 0:00:09]} f6 {[%emt 0:00:32]} 25. Qf5 {[%emt 0:00:10]} Rad8 {[%emt 0:00:06]} 26. Red1 {[%emt 0:00:17]} Bb7 {[%emt 0:00:02]} 27. h4 {[%emt 0:00:23]} g6 {[%emt 0:00:15]} 28. Qc2 {[%emt 0:00:02]} Qa6 {[%emt 0:00:01]} 29. h5 {[%emt 0:00:03]} g5 {[%emt 0:00:14]} 30. Be3 {[%emt 0:00:14]} Qxe6 {[%emt 0:00:06]} 31. Bxa7 {[%emt 0:00:01]} Qf7 {[%emt 0:00:11]} 32. Rb1 {[%emt 0:00:05]} Ba8 {[%emt 0:00:01]} 33. Bb6 {[%emt 0:00:03]} Rb8 {[%emt 0:00:10]} 34. Qf5 {[%emt 0:00:02]} Qxh5 {[%emt 0:00:10]} 35. Bxd5+ {[%emt 0:00:03]} Bxd5 {[%emt 0:00:01]} 36. Qxd5+ {[%emt 0:00:01]} Qf7 {[%emt 0:00:00]} 37. Qxf7+ {[%emt 0:00:04]} Kxf7 38. a4 c3 {[%emt 0:00:13]} 39. Rdc1 {[%emt 0:00:01]} Rec8 {[%emt 0:00:00]} 40. a5 {[%emt 0:00:02]} Ba3 {[%emt 0:00:08]} 41. Rc2 {[%emt 0:00:01]} Bb2 {[%emt 0:00:01]} 42. Rd1 {[%emt 0:00:03]} Rc6 {[%emt 0:00:09]} 43. Kg2 {[%emt 0:00:02]} h5 {[%emt 0:00:02]} 44. Rd5 {[%emt 0:00:02]} Kg6 {[%emt 0:00:08]} 45. Rb5 {[%emt 0:00:01]} g4 {[%emt 0:00:07]} 46. Rd5 {[%emt 0:00:02]} Rbxb6 {[%emt 0:00:06]} 47. axb6 {[%emt 0:00:01]} Rxb6 {[%emt 0:00:00]} 48. Rc5 {[%emt 0:00:02]} Re6 {[%emt 0:00:02]} 49. R5xc3 {[%emt 0:00:01]} Bxc3 {[%emt 0:00:00]} 50. Rxc3 {[%emt 0:00:01]} Re5 {[%emt 0:00:02]} 51. Ra3 {[%emt 0:00:01]} f5 {[%emt 0:00:02]} 52. Ra6+ {[%emt 0:00:01]} Kg5 {[%emt 0:00:01]} 53. Ra8 {[%emt 0:00:02]} Re6 {[%emt 0:00:04]} 54. Ra5 {[%emt 0:00:02]} Rf6 {[%emt 0:00:01]} 55. Ra8 {[%emt 0:00:03]} Rg6 {[%emt 0:00:02]} 56. Ra5 {[%emt 0:00:02]} Rf6 {[%emt 0:00:01]} 57. Ra8 {[%emt 0:00:01]} f4 {[%emt 0:00:01]} 58. gxf4+ {[%emt 0:00:06]} Rxf4 {[%emt 0:00:02]} 59. Ra5+ {[%emt 0:00:02]} Kg6 {[%emt 0:00:04]} 60. Ra6+ {[%emt 0:00:01]} Kg5 {[%emt 0:00:02]} 61. Ra5+ {[%emt 0:00:01]} Kh4 {[%emt 0:00:02]} 62. Rb5 {[%emt 0:00:02]} Ra4 {[%emt 0:00:01]} 63. Rc5 {[%emt 0:00:01]} Ra2 {[%emt 0:00:03]} 64. Rb5 {[%emt 0:00:01]} Rc2 {[%emt 0:00:01]} 65. Ra5 {[%emt 0:00:00]} Rb2 {[%emt 0:00:01]} 66. Rc5 {[%emt 0:00:01]} Ra2 {[%emt 0:00:01]} 67. Rb5 {[%emt 0:00:01]} Rc2 {[%emt 0:00:01]} 68. Ra5 {[%emt 0:00:00]} Rb2 {[%emt 0:00:01]} 69. Rc5 {[%emt 0:00:01]} 1/2-1/2

[Event "IMSA Blitz Men 2019"]
[Site "Hengshui"]
[Date "2019.05.17"]
[Round "6.1"]
[White "Andreikin, Dmitry"]
[Black "Bu, Xiangzhi"]
[Result "1/2-1/2"]
[ECO "C42"]
[WhiteElo "2722"]
[BlackElo "2729"]
[Annotator "RC"]
[PlyCount "83"]
[EventDate "2019.05.17"]
[EventType "blitz"]
[EventCountry "CHN"]
[SourceTitle "playchess.com"]
[Source "ChessBase"]
[SourceQuality "1"]
[TimeControl "180+2"]

1. e4 {[%emt 0:00:00]} e5 {[%emt 0:00:00]} 2. Nf3 {[%emt 0:00:00]} Nf6 {[%emt 0:00:00]} 3. Nxe5 {[%emt 0:00:01]} d6 {[%emt 0:00:00]} 4. Nf3 {[%emt 0:00:02]} Nxe4 {[%emt 0:00:01]} 5. Nc3 {[%emt 0:00:00]} Nxc3 {[%emt 0:00:01]} 6. dxc3 {[%emt 0:00:02]} Be7 {[%emt 0:00:02]} 7. Be3 {[%emt 0:00:00]} Nc6 {[%emt 0:00:01]} 8. Qd2 {[%emt 0:00:02]} Be6 {[%emt 0:00:01]} 9. O-O-O {[%emt 0:00:04]} Qd7 {[%emt 0:00:02]} 10. a3 {[%emt 0:00:01]} Bf6 {[%emt 0:00:04]} 11. h4 {[%emt 0:00:03]} O-O-O {[%emt 0:00:04]} 12. Ng5 {[%emt 0:00:11]} Bf5 {[%emt 0:00:03]} 13. Bb5 {[%emt 0:00:13]} h6 {[%emt 0:00:29]} 14. Nf3 {[%emt 0:00:01]} a6 {[%emt 0:00:06]} 15. Ba4 {[%emt 0:00:06]} Be4 {[%emt 0:00:16]} 16. Bd4 {[%emt 0:00:17]} Bxf3 {[%emt 0:00:19]} 17. gxf3 {[%emt 0:00:07]} Bxd4 {[%emt 0:00:02]} 18. cxd4 {[%emt 0:00:02]} d5 {[%emt 0:00:11]} 19. Rdg1 {[%emt 0:00:25]} g6 {[%emt 0:00:05]} 20. h5 {[%emt 0:00:09]} g5 {[%emt 0:00:00]} 21. f4 {[%emt 0:00:03]} f6 {[%emt 0:00:34]} 22. fxg5 {[%emt 0:00:02]} fxg5 {[%emt 0:00:00]} 23. f4 {[%emt 0:00:02]} b5 {[%emt 0:00:27]} 24. Bb3 {[%emt 0:00:06]} g4 {[%emt 0:00:18]} 25. c3 {[%emt 0:00:24]} Rhg8 {[%emt 0:00:06]} 26. Bc2 {[%emt 0:00:16]} Ne7 {[%emt 0:00:06]} 27. f5 {[%emt 0:00:20]} Nxf5 {[%emt 0:00:02]} 28. Qf4 {[%emt 0:00:02]} Rdf8 {[%emt 0:00:12]} 29. Rxg4 {[%emt 0:00:11]} Rxg4 {[%emt 0:00:09]} 30. Qxg4 {[%emt 0:00:01]} Ne3 {[%emt 0:00:07]} 31. Qg6 {[%emt 0:00:10]} Qd6 {[%emt 0:00:04]} 32. Re1 {[%emt 0:00:28]} Nxc2 {[%emt 0:00:04]} 33. Qxd6 {[%emt 0:00:07]} cxd6 {[%emt 0:00:01]} 34. Kxc2 {[%emt 0:00:02]} Kd7 {[%emt 0:00:00]} 35. Rg1 {[%emt 0:00:02]} Rf5 {[%emt 0:00:01]} 36. Rg7+ {[%emt 0:00:04]} Kc6 {[%emt 0:00:00]} 37. Ra7 {[%emt 0:00:01]} Kb6 {[%emt 0:00:03]} 38. Rd7 {[%emt 0:00:01]} Kc6 {[%emt 0:00:01]} 39. Ra7 {[%emt 0:00:01]} Kb6 {[%emt 0:00:05]} 40. Rd7 {[%emt 0:00:02]} Kc6 {[%emt 0:00:01]} 41. Ra7 {[%emt 0:00:01]} Kb6 {[%emt 0:00:01]} 42. Rd7 {[%emt 0:00:01]} 1/2-1/2

[Event "IMSA Blitz Men 2019"]
[Site "Hengshui"]
[Date "2019.05.17"]
[Round "6.1"]
[White "Fedoseev, Vladimir"]
[Black "Ponomariov, Ruslan"]
[Result "1/2-1/2"]
[ECO "B67"]
[WhiteElo "2683"]
[BlackElo "2675"]
[Annotator "RC"]
[PlyCount "114"]
[EventDate "2019.05.17"]
[EventType "blitz"]
[EventCountry "CHN"]
[SourceTitle "playchess.com"]
[Source "ChessBase"]
[SourceQuality "1"]
[TimeControl "180+2"]

1. e4 {[%emt 0:00:00]} c5 {[%emt 0:00:00]} 2. Nf3 {[%emt 0:00:00]} Nc6 {[%emt 0:00:00]} 3. d4 {[%emt 0:00:02]} cxd4 4. Nxd4 {[%emt 0:00:01]} Nf6 {[%emt 0:00:02]} 5. Nc3 {[%emt 0:00:01]} d6 {[%emt 0:00:01]} 6. Bg5 {[%emt 0:00:02]} e6 {[%emt 0:00:01]} 7. Qd2 {[%emt 0:00:01]} a6 {[%emt 0:00:04]} 8. O-O-O {[%emt 0:00:06]} Bd7 {[%emt 0:00:02]} 9. f3 {[%emt 0:00:07]} Be7 {[%emt 0:00:10]} 10. h4 {[%emt 0:00:01]} h6 {[%emt 0:00:05]} 11. Be3 {[%emt 0:00:01]} h5 {[%emt 0:00:01]} 12. Bd3 {[%emt 0:00:08]} Ne5 {[%emt 0:00:04]} 13. Kb1 {[%emt 0:00:01]} b5 {[%emt 0:00:03]} 14. Bg5 {[%emt 0:00:07]} Qc7 {[%emt 0:00:02]} 15. f4 {[%emt 0:00:09]} Neg4 {[%emt 0:00:04]} 16. Rde1 {[%emt 0:00:25]} b4 {[%emt 0:00:05]} 17. Nd1 {[%emt 0:00:02]} a5 {[%emt 0:00:04]} 18. Nf3 {[%emt 0:00:38]} Rb8 {[%emt 0:00:10]} 19. e5 {[%emt 0:00:13]} dxe5 {[%emt 0:00:20]} 20. Nxe5 {[%emt 0:00:01]} Bb5 {[%emt 0:00:16]} 21. Nxg4 {[%emt 0:00:24]} Nxg4 {[%emt 0:00:14]} 22. Bxe7 {[%emt 0:00:21]} Qxe7 {[%emt 0:00:02]} 23. f5 {[%emt 0:00:24]} e5 {[%emt 0:00:10]} 24. Ne3 {[%emt 0:00:08]} Nf6 {[%emt 0:00:09]} 25. Bxb5+ {[%emt 0:00:09]} Rxb5 {[%emt 0:00:01]} 26. Qd3 {[%emt 0:00:04]} Rc5 {[%emt 0:00:02]} 27. Rhg1 {[%emt 0:00:04]} e4 {[%emt 0:00:12]} 28. Qe2 {[%emt 0:00:02]} O-O {[%emt 0:00:41]} 29. g4 {[%emt 0:00:01]} hxg4 {[%emt 0:00:01]} 30. Nxg4 {[%emt 0:00:01]} Re8 {[%emt 0:00:01]} 31. h5 {[%emt 0:00:08]} Nxg4 {[%emt 0:00:07]} 32. Qxg4 {[%emt 0:00:02]} Qf6 {[%emt 0:00:00]} 33. Rxe4 {[%emt 0:00:03]} Rxe4 {[%emt 0:00:05]} 34. Qxe4 {[%emt 0:00:01]} Rxf5 {[%emt 0:00:03]} 35. Qe2 {[%emt 0:00:03]} Rf2 {[%emt 0:00:04]} 36. Qd1 {[%emt 0:00:01]} Kh7 {[%emt 0:00:03]} 37. b3 {[%emt 0:00:05]} Qf5 {[%emt 0:00:03]} 38. Rh1 {[%emt 0:00:03]} Qf3 {[%emt 0:00:09]} 39. Qc1 {[%emt 0:00:02]} Qe4 {[%emt 0:00:05]} 40. Re1 {[%emt 0:00:03]} Re2 {[%emt 0:00:01]} 41. Rg1 {[%emt 0:00:02]} Rg2 {[%emt 0:00:03]} 42. Rxg2 {[%emt 0:00:03]} Qxg2 {[%emt 0:00:01]} 43. Qd1 {[%emt 0:00:01]} Qe4 {[%emt 0:00:03]} 44. Qg1 {[%emt 0:00:03]} Qf5 {[%emt 0:00:03]} 45. Qd1 {[%emt 0:00:02]} Kh6 {[%emt 0:00:02]} 46. a3 {[%emt 0:00:01]} Qc5 {[%emt 0:00:13]} 47. axb4 {[%emt 0:00:02]} axb4 {[%emt 0:00:01]} 48. Qg4 {[%emt 0:00:03]} Qd6 {[%emt 0:00:06]} 49. Qf5 {[%emt 0:00:01]} Qe7 {[%emt 0:00:03]} 50. Qg4 {[%emt 0:00:04]} g6 {[%emt 0:00:02]} 51. hxg6 {[%emt 0:00:02]} fxg6 {[%emt 0:00:01]} 52. Qh3+ {[%emt 0:00:02]} Kg7 {[%emt 0:00:00]} 53. c4 {[%emt 0:00:02]} Qe1+ {[%emt 0:00:04]} 54. Kc2 {[%emt 0:00:01]} Qe2+ {[%emt 0:00:01]} 55. Kc1 {[%emt 0:00:01]} Qe1+ {[%emt 0:00:01]} 56. Kc2 {[%emt 0:00:01]} Qe2+ {[%emt 0:00:01]} 57. Kc1 {[%emt 0:00:00]} Qe1+ 1/2-1/2

[Event "IMSA Blitz Men 2019"]
[Site "Hengshui"]
[Date "2019.05.17"]
[Round "6.1"]
[White "Gelfand, Boris"]
[Black "Korobov, Anton"]
[Result "1/2-1/2"]
[ECO "D12"]
[WhiteElo "2676"]
[BlackElo "2687"]
[Annotator "ChessBase"]
[PlyCount "117"]
[EventDate "2019.05.17"]
[EventType "blitz"]
[EventCountry "CHN"]
[SourceTitle "playchess.com"]
[Source "ChessBase"]
[SourceQuality "1"]
[TimeControl "180+2"]

1. d4 {[%emt 0:00:00]} d5 {[%emt 0:00:00]} 2. c4 {[%emt 0:00:00]} c6 {[%emt 0:00:00]} 3. Nf3 {[%emt 0:00:01]} Nf6 {[%emt 0:00:01]} 4. e3 {[%emt 0:00:01]} Bf5 {[%emt 0:00:02]} 5. Nc3 {[%emt 0:00:01]} e6 {[%emt 0:00:01]} 6. Nh4 {[%emt 0:00:01]} Bg6 {[%emt 0:00:01]} 7. Be2 {[%emt 0:00:01]} Nbd7 {[%emt 0:00:02]} 8. O-O {[%emt 0:00:01]} Bd6 {[%emt 0:00:01]} 9. g3 {[%emt 0:00:01]} dxc4 {[%emt 0:00:03]} 10. Bxc4 {[%emt 0:00:01]} Bh5 {[%emt 0:00:03]} 11. Be2 {[%emt 0:00:02]} Bxe2 {[%emt 0:00:04]} 12. Qxe2 {[%emt 0:00:01]} c5 {[%emt 0:00:14]} 13. dxc5 {[%emt 0:00:31]} Bxc5 {[%emt 0:00:02]} 14. e4 {[%emt 0:00:01]} Bd4 {[%emt 0:00:27]} 15. Nb5 {[%emt 0:00:11]} Be5 {[%emt 0:00:06]} 16. Nf3 {[%emt 0:00:22]} Bb8 {[%emt 0:00:09]} 17. Nc3 {[%emt 0:00:15]} O-O {[%emt 0:00:45]} 18. e5 {[%emt 0:00:07]} Nd5 {[%emt 0:00:09]} 19. Nxd5 {[%emt 0:00:01]} exd5 {[%emt 0:00:00]} 20. e6 {[%emt 0:00:24]} Re8 {[%emt 0:00:26]} 21. exf7+ {[%emt 0:00:23]} Kxf7 {[%emt 0:00:01]} 22. Ng5+ {[%emt 0:00:05]} Kg8 {[%emt 0:00:02]} 23. Qh5 {[%emt 0:00:02]} h6 {[%emt 0:00:14]} 24. Qf7+ {[%emt 0:00:34]} Kh8 {[%emt 0:00:00]} 25. Qh5 {[%emt 0:00:07]} Kg8 {[%emt 0:00:11]} 26. Qf7+ {[%emt 0:00:02]} Kh8 {[%emt 0:00:00]} 27. Nf3 {[%emt 0:00:02]} Rf8 {[%emt 0:00:10]} 28. Qxd5 {[%emt 0:00:11]} Ne5 {[%emt 0:00:04]} 29. Qxd8 {[%emt 0:00:01]} Nxf3+ {[%emt 0:00:01]} 30. Kg2 {[%emt 0:00:01]} Rxd8 {[%emt 0:00:02]} 31. Kxf3 {[%emt 0:00:01]} Be5 {[%emt 0:00:02]} 32. Be3 {[%emt 0:00:08]} b6 {[%emt 0:00:00]} 33. Rab1 {[%emt 0:00:02]} Rac8 {[%emt 0:00:02]} 34. b4 {[%emt 0:00:05]} Rc4 {[%emt 0:00:10]} 35. Rfc1 {[%emt 0:00:03]} Rdc8 {[%emt 0:00:03]} 36. Rd1 {[%emt 0:00:06]} R8c7 {[%emt 0:00:14]} 37. Rd5 {[%emt 0:00:04]} Bf6 {[%emt 0:00:00]} 38. h4 {[%emt 0:00:06]} Kg8 {[%emt 0:00:01]} 39. a4 {[%emt 0:00:02]} Bc3 {[%emt 0:00:01]} 40. a5 {[%emt 0:00:04]} Rxb4 {[%emt 0:00:04]} 41. Rc1 {[%emt 0:00:03]} b5 {[%emt 0:00:11]} 42. Rc5 {[%emt 0:00:04]} Rxc5 {[%emt 0:00:02]} 43. Bxc5 {[%emt 0:00:01]} Rc4 {[%emt 0:00:01]} 44. Bxa7 {[%emt 0:00:02]} Bxa5 {[%emt 0:00:01]} 45. Rxc4 {[%emt 0:00:01]} bxc4 {[%emt 0:00:01]} 46. Ke4 {[%emt 0:00:02]} h5 {[%emt 0:00:01]} 47. Be3 {[%emt 0:00:02]} Kf7 {[%emt 0:00:02]} 48. Kd5 {[%emt 0:00:02]} c3 {[%emt 0:00:02]} 49. Kc4 {[%emt 0:00:01]} g6 {[%emt 0:00:09]} 50. Kd3 {[%emt 0:00:01]} Ke6 {[%emt 0:00:00]} 51. Bd4 {[%emt 0:00:03]} Kf5 {[%emt 0:00:03]} 52. f3 {[%emt 0:00:01]} Bc7 {[%emt 0:00:02]} 53. Bf2 {[%emt 0:00:02]} Be5 {[%emt 0:00:00]} 54. Be1 {[%emt 0:00:02]} g5 {[%emt 0:00:03]} 55. hxg5 {[%emt 0:00:01]} Kxg5 {[%emt 0:00:01]} 56. f4+ {[%emt 0:00:02]} Bxf4 {[%emt 0:00:01]} 57. gxf4+ {[%emt 0:00:01]} Kxf4 {[%emt 0:00:02]} 58. Kxc3 {[%emt 0:00:00]} h4 {[%emt 0:00:01]} 59. Bxh4 1/2-1/2

[Event "IMSA Blitz Men 2019"]
[Site "Hengshui"]
[Date "2019.05.17"]
[Round "6.2"]
[White "Rapport, Richard"]
[Black "Yu, Yangyi"]
[Result "1-0"]
[ECO "A01"]
[WhiteElo "2736"]
[BlackElo "2739"]
[Annotator "RC"]
[PlyCount "93"]
[EventDate "2019.05.17"]
[EventType "blitz"]
[EventCountry "CHN"]
[SourceTitle "playchess.com"]
[Source "ChessBase"]
[SourceQuality "1"]
[TimeControl "180+2"]

1. b3 {[%emt 0:00:00]} Nf6 {[%emt 0:00:01]} 2. Bb2 {[%emt 0:00:00]} b6 {[%emt 0:00:00]} 3. e3 {[%emt 0:00:03]} Bb7 {[%emt 0:00:01]} 4. d4 {[%emt 0:00:03]} e6 {[%emt 0:00:08]} 5. Nf3 {[%emt 0:00:02]} d5 {[%emt 0:00:01]} 6. Bd3 {[%emt 0:00:03]} Be7 {[%emt 0:00:03]} 7. O-O {[%emt 0:00:04]} O-O {[%emt 0:00:02]} 8. c4 {[%emt 0:00:01]} dxc4 {[%emt 0:00:05]} 9. Bxc4 {[%emt 0:00:04]} Nbd7 {[%emt 0:00:09]} 10. Qe2 {[%emt 0:00:05]} c5 {[%emt 0:00:02]} 11. Rd1 {[%emt 0:00:04]} Qb8 {[%emt 0:00:08]} 12. Nc3 {[%emt 0:00:03]} cxd4 {[%emt 0:00:05]} 13. Rxd4 {[%emt 0:00:02]} a6 {[%emt 0:00:09]} 14. Rad1 {[%emt 0:00:04]} Qc7 {[%emt 0:00:09]} 15. Bd3 {[%emt 0:00:07]} Nc5 {[%emt 0:00:05]} 16. Bb1 {[%emt 0:00:04]} Rad8 {[%emt 0:00:01]} 17. h3 {[%emt 0:00:17]} b5 {[%emt 0:00:06]} 18. b4 {[%emt 0:00:13]} Rxd4 {[%emt 0:00:06]} 19. Rxd4 {[%emt 0:00:01]} Ncd7 {[%emt 0:00:02]} 20. a4 {[%emt 0:00:02]} bxa4 {[%emt 0:00:11]} 21. Nxa4 {[%emt 0:00:02]} h6 {[%emt 0:00:06]} 22. Rc4 {[%emt 0:00:12]} Qb8 {[%emt 0:00:13]} 23. e4 {[%emt 0:00:20]} Rc8 {[%emt 0:00:05]} 24. Bc3 {[%emt 0:00:07]} Bc6 {[%emt 0:00:13]} 25. Nb2 {[%emt 0:00:10]} Nb6 {[%emt 0:00:23]} 26. Be5 {[%emt 0:00:14]} Qb7 {[%emt 0:00:07]} 27. Rd4 {[%emt 0:00:01]} Nbd7 {[%emt 0:00:07]} 28. Bg3 {[%emt 0:00:17]} Bxb4 {[%emt 0:00:06]} 29. e5 {[%emt 0:00:32]} Bc3 {[%emt 0:00:29]} 30. exf6 {[%emt 0:00:02]} Qxb2 {[%emt 0:00:13]} 31. Qd3 {[%emt 0:00:17]} Nxf6 {[%emt 0:00:03]} 32. Rc4 {[%emt 0:00:07]} Rb8 {[%emt 0:00:10]} 33. Bxb8 {[%emt 0:00:05]} Be4 {[%emt 0:00:09]} 34. Rxe4 {[%emt 0:00:07]} Qxb8 {[%emt 0:00:06]} 35. Qxc3 {[%emt 0:00:04]} Qxb1+ {[%emt 0:00:01]} 36. Re1 {[%emt 0:00:00]} Qb6 {[%emt 0:00:02]} 37. Qc8+ {[%emt 0:00:02]} Kh7 {[%emt 0:00:01]} 38. Qc2+ {[%emt 0:00:01]} Kg8 39. Ra1 g6 {[%emt 0:00:05]} 40. Qa2 {[%emt 0:00:01]} Ne4 {[%emt 0:00:01]} 41. Qe2 {[%emt 0:00:02]} Nc5 {[%emt 0:00:04]} 42. Qe3 {[%emt 0:00:02]} Qb2 {[%emt 0:00:02]} 43. Qd4 {[%emt 0:00:02]} Qc2 {[%emt 0:00:02]} 44. Qd1 Qb2 {[%emt 0:00:02]} 45. Rb1 {[%emt 0:00:04]} Qc3 {[%emt 0:00:02]} 46. Rb8+ {[%emt 0:00:02]} Kg7 {[%emt 0:00:00]} 47. Qd4+ {[%emt 0:00:01]} 1-0

[Event "IMSA Blitz Men 2019"]
[Site "Hengshui"]
[Date "2019.05.17"]
[Round "6.2"]
[White "Wang, Hao"]
[Black "Le, Quang Liem"]
[Result "1-0"]
[ECO "B31"]
[WhiteElo "2735"]
[BlackElo "2704"]
[Annotator "RC"]
[PlyCount "80"]
[EventDate "2019.05.17"]
[EventType "blitz"]
[EventCountry "CHN"]
[SourceTitle "playchess.com"]
[Source "ChessBase"]
[SourceQuality "1"]
[TimeControl "180+2"]

1. e4 {[%emt 0:00:00]} c5 {[%emt 0:00:00]} 2. Nf3 {[%emt 0:00:01]} Nc6 {[%emt 0:00:00]} 3. Bb5 {[%emt 0:00:01]} g6 {[%emt 0:00:01]} 4. Bxc6 {[%emt 0:00:02]} dxc6 {[%emt 0:00:01]} 5. d3 {[%emt 0:00:01]} Bg7 {[%emt 0:00:01]} 6. h3 {[%emt 0:00:01]} e5 {[%emt 0:00:01]} 7. a3 {[%emt 0:00:04]} Qe7 {[%emt 0:00:17]} 8. O-O {[%emt 0:00:04]} Nf6 {[%emt 0:00:02]} 9. b4 {[%emt 0:00:05]} O-O {[%emt 0:00:05]} 10. bxc5 {[%emt 0:00:02]} Qxc5 {[%emt 0:00:03]} 11. a4 {[%emt 0:00:03]} Re8 {[%emt 0:00:06]} 12. Be3 {[%emt 0:00:15]} Qe7 {[%emt 0:00:03]} 13. Nbd2 {[%emt 0:00:03]} c5 {[%emt 0:00:09]} 14. a5 {[%emt 0:00:05]} Bd7 {[%emt 0:00:28]} 15. Nc4 {[%emt 0:00:18]} Nh5 {[%emt 0:00:04]} 16. Nfd2 {[%emt 0:00:37]} Rac8 {[%emt 0:00:20]} 17. Rb1 {[%emt 0:00:18]} Rc7 {[%emt 0:00:08]} 18. Re1 {[%emt 0:00:07]} Qf6 {[%emt 0:00:22]} 19. Qf3 {[%emt 0:00:03]} Nf4 {[%emt 0:00:20]} 20. Bxf4 {[%emt 0:00:05]} Qxf4 {[%emt 0:00:02]} 21. Qxf4 {[%emt 0:00:08]} exf4 {[%emt 0:00:01]} 22. e5 {[%emt 0:00:01]} Bc6 {[%emt 0:00:04]} 23. Ne4 {[%emt 0:00:08]} Bd5 {[%emt 0:00:11]} 24. Nf6+ {[%emt 0:00:21]} Bxf6 {[%emt 0:00:03]} 25. exf6 {[%emt 0:00:01]} Kf8 {[%emt 0:00:06]} 26. Nd6 {[%emt 0:00:05]} Rd8 {[%emt 0:00:11]} 27. Nb5 {[%emt 0:00:04]} Rcd7 {[%emt 0:00:17]} 28. Nxa7 {[%emt 0:00:04]} Ra8 {[%emt 0:00:01]} 29. Nb5 {[%emt 0:00:18]} Rxa5 {[%emt 0:00:06]} 30. Ra1 {[%emt 0:00:08]} Rxa1 {[%emt 0:00:16]} 31. Rxa1 {[%emt 0:00:01]} Rd8 {[%emt 0:00:01]} 32. Nc3 {[%emt 0:00:01]} Bc6 {[%emt 0:00:03]} 33. Ra5 {[%emt 0:00:07]} c4 {[%emt 0:00:01]} 34. dxc4 {[%emt 0:00:03]} h6 {[%emt 0:00:03]} 35. h4 {[%emt 0:00:03]} Kg8 {[%emt 0:00:07]} 36. Nd5 {[%emt 0:00:07]} Kh7 {[%emt 0:00:03]} 37. f3 {[%emt 0:00:02]} Rd6 {[%emt 0:00:03]} 38. Kf2 {[%emt 0:00:03]} g5 {[%emt 0:00:00]} 39. h5 {[%emt 0:00:03]} b5 {[%emt 0:00:05]} 40. Ra6 {[%emt 0:00:02]} bxc4 1-0